bitfinex/quotes_SOLUSD_20260202
["timestamp","ask_amount","ask_price","bid_price","bid_amount"]
[1770034348572,4.10793338,103.35,103.32,8.1002926]
[1770034350570,4.10793338,103.35,103.32,8.09567028]
[1770034351275,4.10793338,103.35,103.32,4.49084771]
[1770034351992,4.10793338,103.35,103.32,8.09567028]
[1770034353157,4.39225652,103.34,103.31,3.60482257]
[1770034353562,4.39225652,103.34,103.31,8.09567028]
[1770034357087,4.10793338,103.34,103.32,8.09567028]
[1770034358465,4.48057596,103.35,103.32,8.09567028]
[1770034358667,4.48057596,103.35,103.32,3.60482257]
[1770034358982,4.48057596,103.35,103.32,7.96879312]
[1770034359685,4.19625282,103.35,103.32,7.96879312]
[1770034359872,4.19625282,103.35,103.33,4.36397055]
[1770034360273,4.19625282,103.35,103.33,7.96879312]
[1770034361389,4.19625282,103.35,103.32,7.96879312]
[1770034362172,4.19625282,103.33,103.26,8.6392414]
[1770034362387,4.19625282,103.32,103.28,7.96879312]
[1770034362598,4.19625282,103.32,103.29,7.96879312]
[1770034362776,4.19625282,103.34,103.31,7.96879312]
[1770034362977,30.0,103.32,103.31,7.96879312]
[1770034364213,4.19625282,103.34,103.26,9.6838921]
[1770034364214,4.19625282,103.33,103.3,7.96879312]
[1770034364574,4.19625282,103.32,103.29,7.96879312]
[1770034364891,4.19625282,103.31,103.27,7.96879312]
[1770034365076,4.19625282,103.31,103.28,7.96879312]
[1770034366577,4.19625282,103.31,103.29,3.60482257]
[1770034366791,4.19625282,103.31,103.28,4.36397055]
[1770034366996,3.88914571,103.33,103.3,7.96879312]
[1770034366997,4.48057596,103.33,103.3,7.96879312]
[1770034367188,25.5,103.31,103.3,7.96879312]
[1770034367378,4.19625282,103.33,103.3,7.96879312]
[1770034368590,4.78432314,103.35,103.31,3.60482257]
[1770034370190,4.78432314,103.35,103.32,3.60482257]
[1770034370379,4.78432314,103.35,103.31,3.60482257]
[1770034372801,4.5,103.33,103.3,3.60482257]
[1770034373090,4.5,103.33,103.29,3.60482257]
[1770034373091,4.5,103.31,103.29,3.60482257]
[1770034373697,4.5,103.31,103.28,3.60482257]
[1770034374086,4.5,103.31,103.25,26.9]
[1770034374398,4.5,103.31,103.28,3.60482257]
[1770034374982,4.5,103.32,103.3,3.60482257]
[1770034376397,4.5,103.33,103.31,3.60482257]
[1770034376984,4.5,103.33,103.3,3.60482257]
[1770034379886,4.5,103.33,103.29,3.60482257]
[1770034380404,4.5,103.33,103.3,3.60482257]
[1770034382109,4.5,103.35,103.32,3.60482257]
[1770034382594,4.5,103.35,103.31,3.60482257]
[1770034383800,3.60482257,103.35,103.31,3.60482257]
[1770034384006,4.5,103.34,103.31,3.60482257]
[1770034384908,4.5,103.34,103.3,3.60482257]
[1770034385293,4.78432314,103.32,103.29,3.60482257]
[1770034385498,4.78432314,103.32,103.28,3.60482257]
[1770034385704,4.78432314,103.32,103.29,3.60482257]
[1770034386610,4.78432314,103.32,103.28,3.60482257]
[1770034386804,3.88914571,103.32,103.28,3.60482257]
[1770034387000,4.5,103.31,103.28,3.60482257]
[1770034392323,4.5,103.32,103.29,3.60482257]
[1770034393118,4.5,103.32,103.28,3.60482257]
[1770034393423,4.5,103.31,103.27,3.60482257]
[1770034394230,4.5,103.3,103.27,3.60482257]
[1770034395226,4.5,103.28,103.23,0.2]
[1770034395398,4.5,103.27,103.23,3.80482257]
[1770034395819,4.5,103.26,103.23,0.2]
[1770034397911,4.5,103.25,103.23,0.2]
[1770034398207,8.10482257,103.25,103.23,0.2]
[1770034398413,4.5,103.25,103.23,0.2]
[1770034398723,8.10482257,103.26,103.23,0.2]
[1770034398916,4.5,103.26,103.23,3.80482257]
[1770034399431,8.10482257,103.27,103.23,3.80482257]
[1770034399606,4.5,103.27,103.24,3.60482257]
[1770034399813,4.5,103.27,103.23,3.80482257]
[1770034400629,8.10482257,103.28,103.23,3.80482257]
[1770034400830,8.10482257,103.28,103.24,3.60482257]
[1770034401034,4.5,103.28,103.24,3.60482257]
[1770034401811,4.5,103.27,103.24,3.60482257]
[1770034402011,4.5,103.27,103.23,3.80482257]
[1770034402827,4.5,103.26,103.23,0.2]
[1770034403033,4.5,103.25,103.23,0.2]
[1770034403634,4.5,103.24,103.23,0.2]
[1770034404022,4.5,103.25,103.23,0.2]
[1770034406851,8.10482257,103.25,103.23,0.2]
[1770034407530,4.5,103.25,103.23,0.2]
[1770034407846,8.10482257,103.25,103.23,0.2]
[1770034408024,4.5,103.26,103.23,0.2]
[1770034408223,8.10482257,103.26,103.23,0.2]
[1770034410416,4.5,103.24,103.23,0.2]
[1770034410730,4.5,103.24,103.2,0.2]
[1770034410731,4.5,103.23,103.2,3.80482257]
[1770034410924,4.5,103.23,103.2,0.2]
[1770034411431,8.10482257,103.23,103.2,0.2]
[1770034411941,4.5,103.23,103.2,0.2]
[1770034412240,4.5,103.23,103.19,0.2]
[1770034412241,4.4,103.21,103.19,0.2]
[1770034412743,4.4,103.22,103.19,4.01404563]
[1770034413530,4.4,103.24,103.21,3.61404563]
[1770034414046,4.4,103.24,103.2,3.81404563]
[1770034416226,4.4,103.24,103.21,3.61404563]
[1770034417749,4.4,103.24,103.2,3.81404563]
[1770034420232,4.4,103.24,103.21,3.81404563]
[1770034421261,4.4,103.26,103.22,3.81404563]
[1770034423246,4.4,103.26,103.23,3.61404563]
[1770034423757,4.4,103.25,103.21,0.2]
[1770034423965,4.4,103.25,103.21,3.81404563]
[1770034424273,4.4,103.26,103.22,3.81404563]
[1770034426545,4.4,103.25,103.22,0.2]
[1770034426950,4.4,103.25,103.21,3.81404563]
[1770034427173,4.4,103.25,103.22,3.81404563]
[1770034432543,4.4,103.27,103.24,0.2]
[1770034432869,108.4,103.28,103.25,3.81404563]
[1770034433375,4.4,103.28,103.25,3.81404563]
[1770034433566,4.4,103.28,103.22,9.68777511]
[1770034433567,4.4,103.3,103.26,3.81404563]
[1770034434087,4.4,103.3,103.27,3.61404563]
[1770034434253,4.4,103.3,103.27,3.81404563]
[1770034435463,4.4,103.3,103.28,3.61404563]
[1770034436468,4.4,103.3,103.27,3.81404563]
[1770034438466,4.4,103.3,103.28,3.61404563]
[1770034439071,4.4,103.31,103.28,3.81404563]
[1770034439369,4.4,103.31,103.29,3.61404563]
[1770034439754,104.0,103.35,103.3,3.61404563]
[1770034439755,4.4,103.32,103.3,3.61404563]
[1770034440157,4.4,103.32,103.29,0.2]
[1770034440349,4.4,103.32,103.29,3.81404563]
[1770034441868,4.4,103.31,103.28,3.61404563]
[1770034442163,4.4,103.3,103.26,3.81404563]
[1770034442352,4.4,103.3,103.27,3.61404563]
[1770034442852,4.4,103.3,103.27,3.81404563]
[1770034443968,4.4,103.31,103.28,0.2]
[1770034444173,4.4,103.31,103.28,3.81404563]
[1770034445769,4.4,103.32,103.28,3.81404563]
[1770034445956,4.4,103.32,103.29,3.61404563]
[1770034446576,4.4,103.34,103.3,0.2]
[1770034446805,4.4,103.34,103.31,3.61404563]
[1770034447161,4.4,103.38,103.29,0.2]
[1770034447360,4.4,103.38,103.34,3.61404563]
[1770034447564,4.4,103.37,103.32,0.2]
[1770034447870,4.49878661,103.36,103.31,0.2]
[1770034448078,4.49878661,103.35,103.31,3.61404563]
[1770034448277,4.49878661,103.34,103.3,3.81404563]
[1770034448572,4.49878661,103.34,103.31,3.81404563]
[1770034448756,4.49878661,103.33,103.3,3.61404563]
[1770034448956,4.49878661,103.33,103.29,3.81404563]
[1770034449358,4.49878661,103.33,103.3,3.61404563]
[1770034449766,4.49878661,103.33,103.29,3.81404563]
[1770034450078,4.49878661,103.33,103.3,3.81404563]
[1770034450283,4.49878661,103.34,103.31,0.2]
[1770034450459,4.49878661,103.34,103.31,3.81404563]
[1770034450656,4.49878661,103.34,103.29,3.61404563]
[1770034450858,4.5,103.32,103.29,3.61404563]
[1770034451061,4.5,103.32,103.28,4.27527085]
[1770034451266,4.5,103.32,103.28,7.88931648]
[1770034452074,4.5,103.32,103.28,3.61404563]
[1770034453475,4.5,103.32,103.29,3.61404563]
[1770034453776,4.5,103.33,103.3,3.61404563]
[1770034454475,4.5,103.33,103.29,3.61404563]
[1770034455286,4.5,103.32,103.29,3.61404563]
[1770034455878,4.5,103.32,103.28,3.61404563]
[1770034456670,4.5,103.31,103.27,3.61404563]
[1770034456985,4.5,103.3,103.26,3.61404563]
[1770034457282,4.5,103.29,103.25,3.61404563]
[1770034459073,4.5,103.3,103.27,3.61404563]
[1770034460687,4.5,103.3,103.24,9.68607517]
[1770034460982,4.5,103.3,103.26,3.61404563]
[1770034461485,4.5,103.3,103.27,3.61404563]
[1770034463475,4.5,103.3,103.28,3.61404563]
[1770034463988,4.5,103.3,103.27,3.61404563]
[1770034472398,4.5,103.3,103.27,3.60755993]
[1770034475380,4.5,103.3,103.26,3.60755993]
[1770034475585,8.10755993,103.3,103.26,3.60755993]
[1770034475789,4.5,103.29,103.26,3.60755993]
[1770034480706,4.5,103.29,103.23,26.9]
[1770034480899,4.5,103.29,103.25,3.60755993]
[1770034481205,4.5,103.29,103.26,3.60755993]
[1770034484707,4.5,103.3,103.26,3.60755993]
[1770034485112,4.5,103.3,103.23,36.58658459]
[1770034485307,4.5,103.3,103.26,3.60755993]
[1770034489008,4.5,103.3,103.27,3.60755993]
[1770034489993,4.5,103.29,103.26,3.60755993]
[1770034490190,4.5,103.29,103.25,3.60755993]
[1770034490615,4.5,103.29,103.26,3.60755993]
[1770034494324,4.5,103.29,103.25,3.60755993]
[1770034497001,4.5,103.3,103.27,3.60755993]
[1770034500926,4.5,103.3,103.26,3.60755993]
[1770034501126,4.5,103.29,103.25,3.60755993]
[1770034501424,4.5,103.26,103.22,3.60755993]
[1770034501601,4.5,103.26,103.21,3.60755993]
[1770034501602,4.5,103.25,103.21,3.60755993]
[1770034502136,4.5,103.25,103.19,0.2]
[1770034502137,4.5,103.22,103.19,0.2]
[1770034502427,4.5,103.21,103.19,3.80755993]
[1770034502843,4.5,103.21,103.19,0.2]
[1770034504026,4.5,103.22,103.19,3.80755993]
[1770034504227,4.5,103.22,103.2,3.60755993]
[1770034504418,4.5,103.23,103.21,3.60755993]
[1770034504936,4.5,103.23,103.2,3.60755993]
[1770034507519,4.5,103.23,103.21,3.60755993]
[1770034508623,4.5,103.25,103.21,3.60755993]
[1770034508826,4.5,103.25,103.22,3.60755993]
[1770034509615,4.5,103.25,103.23,3.60755993]
[1770034510215,4.5,103.25,103.2,3.60755993]
[1770034510216,4.5,103.25,103.24,3.60755993]
[1770034510419,104.0,103.29,103.24,3.80755992]
[1770034510607,104.0,103.29,103.25,3.60755993]
[1770034512234,107.60755993,103.29,103.25,3.60755993]
[1770034512532,4.49650307,103.28,103.25,3.60755993]
[1770034512835,4.49650307,103.28,103.26,3.60755993]
[1770034513131,4.49650307,103.29,103.26,3.60755993]
[1770034513319,4.49650307,103.29,103.27,3.60755993]
[1770034513918,4.49650307,103.29,103.26,3.60755993]
[1770034514829,4.49650307,103.29,103.25,3.80755992]
[1770034515025,4.49650307,103.28,103.25,3.80755992]
[1770034515225,4.49650307,103.27,103.23,3.60755993]
[1770034515529,4.49650307,103.27,103.24,3.60755993]
[1770034515833,4.49650307,103.25,103.22,3.60755993]
[1770034517010,4.49650307,103.25,103.22,3.80755992]
[1770034519438,4.49650307,103.25,103.19,14.16610888]
[1770034519439,4.49650307,103.23,103.19,0.39999999]
[1770034519647,4.49650307,103.22,103.19,0.2]
[1770034519845,4.49650307,103.22,103.19,3.80755993]
[1770034520521,4.49650307,103.23,103.2,3.60755993]
[1770034524348,4.49650307,103.23,103.19,4.00755992]
[1770034525150,4.49650307,103.25,103.22,3.60755993]
[1770034525331,4.49650307,103.25,103.22,3.80755992]
[1770034525534,29.80000001,103.23,103.22,3.80755992]
[1770034525726,108.27527085,103.29,103.22,3.80755992]
[1770034525727,4.5,103.26,103.22,3.80755992]
[1770034525933,4.5,103.26,103.24,3.60755993]
[1770034526128,4.5,103.26,103.22,0.19999999]
[1770034526447,4.5,103.26,103.23,3.60755993]
[1770034526827,4.5,103.24,103.21,3.60755993]
[1770034527432,4.5,103.23,103.2,3.60755993]
[1770034528254,4.5,103.23,103.19,0.2]
[1770034528463,4.5,103.23,103.2,3.60755993]
[1770034529653,4.5,103.22,103.19,0.2]
[1770034529827,4.5,103.22,103.19,3.80755993]
[1770034530261,4.5,103.22,103.19,0.2]
[1770034530430,4.5,103.23,103.2,3.60755993]
[1770034530950,4.5,103.23,103.19,3.80755993]
[1770034531632,4.5,103.23,103.19,0.2]
[1770034531833,4.5,103.23,103.19,3.80755993]
[1770034534365,4.5,103.23,103.2,3.60755993]
[1770034534654,4.5,103.25,103.21,3.61257383]
[1770034536958,4.5,103.24,103.2,3.61257383]
[1770034537757,4.5,103.23,103.19,3.81257383]
[1770034538254,0.28432314,103.25,103.22,3.61257383]
[1770034538438,4.5,103.27,103.24,3.61257383]
[1770034539236,4.5,103.27,103.23,3.61257383]
[1770034539445,4.5,103.27,103.24,3.61257383]
[1770034540459,4.5,103.28,103.26,3.61257383]
[1770034540754,103.61257383,103.3,103.27,3.61257383]
[1770034540755,104.5,103.3,103.27,3.61257383]
[1770034540956,4.5,103.29,103.25,3.7547354]
[1770034541136,4.5,103.29,103.25,3.61257383]
[1770034541341,4.5,103.29,103.26,3.61257383]
[1770034542956,8.11257383,103.29,103.25,3.61257383]
[1770034543145,100.0,103.3,103.24,3.61257383]
[1770034543146,4.5,103.27,103.24,3.61257383]
[1770034544069,4.5,103.26,103.23,3.61257383]
[1770034544380,4.5,103.25,103.23,3.61257383]
[1770034545642,4.5,103.25,103.22,3.61257383]
[1770034546474,4.5,103.25,103.21,3.61257383]
[1770034547150,4.5,103.25,103.22,3.61257383]
[1770034547846,4.5,103.25,103.21,3.61257383]
[1770034549167,4.5,103.25,103.22,3.61257383]
[1770034551268,8.11257383,103.25,103.21,3.61257383]
[1770034551451,4.5,103.24,103.21,3.61257383]
[1770034553576,4.5,103.24,103.2,3.61257383]
[1770034553757,8.11257383,103.24,103.2,3.61257383]
[1770034554073,4.5,103.23,103.2,3.61257383]
[1770034554252,4.5,103.23,103.19,3.81257383]
[1770034555159,4.5,103.23,103.2,3.61257383]
[1770034556674,3.61257383,103.23,103.19,0.2]
[1770034556856,4.5,103.22,103.19,3.81257383]
[1770034557405,135.19527085,103.28,103.2,3.61257383]
[1770034557406,4.5,103.23,103.2,3.61257383]
[1770034558480,4.5,103.22,103.19,3.81257383]
[1770034559076,4.5,103.21,103.19,0.2]
[1770034559772,4.5,103.22,103.2,3.61257383]
[1770034559970,3.61257383,103.24,103.19,3.81257383]
[1770034560174,4.5,103.23,103.2,3.61257383]
[1770034560578,4.5,103.23,103.19,3.81257383]
[1770034560789,4.5,103.23,103.19,0.2]
[1770034560790,4.5,103.22,103.19,0.2]
[1770034561169,4.5,103.21,103.19,0.2]
[1770034564492,4.5,103.22,103.19,3.81257383]
[1770034565853,4.5,103.25,103.21,3.61257383]
[1770034566282,4.5,103.25,103.22,3.61257383]
[1770034568354,4.5,103.25,103.23,3.61257383]
[1770034568558,4.5,103.25,103.2,13.58680746]
[1770034568559,4.5,103.25,103.22,3.61257383]
[1770034568782,4.5,103.25,103.23,3.61257383]
[1770034569903,4.5,103.28,103.24,3.61257383]
[1770034570059,4.5,103.28,103.25,3.61257383]
[1770034570994,4.5,103.29,103.26,3.61257383]
[1770034571180,104.5,103.3,103.27,3.61257383]
[1770034571861,4.5,103.29,103.27,3.61257383]
[1770034574489,4.5,103.29,103.28,3.61257383]
[1770034574669,104.5,103.3,103.28,3.61257383]
[1770034578696,100.0,103.3,103.29,3.61257383]
[1770034578866,4.5,103.32,103.26,0.28432314]
[1770034579074,4.5,103.32,103.29,3.61257383]
[1770034579471,4.5,103.33,103.3,3.61257383]
[1770034579668,4.5,103.33,103.31,3.61257383]
[1770034580075,4.5,103.33,103.3,3.61257383]
[1770034581288,4.5,103.33,103.28,0.28432314]
[1770034581489,4.5,103.32,103.29,3.61257383]
[1770034584090,4.5,103.32,103.28,3.61257383]
[1770034584979,4.5,103.31,103.28,3.61257383]
[1770034585876,4.5,103.31,103.27,3.61257383]
[1770034586689,4.5,103.31,103.28,3.61257383]
[1770034587702,4.5,103.32,103.29,3.61257383]
[1770034589091,4.5,103.32,103.3,3.61257383]
[1770034589290,4.5,103.33,103.3,3.61257383]
[1770034589483,4.5,103.33,103.31,3.61257383]
[1770034589791,0.1,103.34,103.32,3.61257383]
[1770034589994,0.1,103.36,103.33,3.61257383]
[1770034590198,0.1,103.36,103.31,0.28432314]
[1770034590499,4.6,103.36,103.33,3.61257383]
[1770034590700,4.6,103.36,103.31,0.28432314]
[1770034591000,4.6,103.36,103.33,3.61257383]
[1770034591385,4.6,103.36,103.32,3.61257383]
[1770034591572,4.5,103.35,103.32,3.61257383]
[1770034591997,4.5,103.34,103.31,3.61257383]
[1770034592197,4.5,103.34,103.32,3.61257383]
[1770034592895,4.5,103.34,103.31,3.61257383]
[1770034594300,4.5,103.34,103.32,3.61257383]
[1770034595396,4.5,103.35,103.32,3.61257383]
[1770034595579,4.5,103.35,103.33,3.61257383]
[1770034595781,4.5,103.35,103.31,0.28432314]
[1770034595981,4.5,103.35,103.32,3.61257383]
[1770034596405,4.5,103.35,103.31,3.60462296]
[1770034596924,4.5,103.35,103.32,3.60462296]
[1770034600202,4.5,103.35,103.31,3.60462296]
[1770034602091,4.5,103.35,103.3,3.60462296]
[1770034602092,4.5,103.34,103.3,3.60462296]
[1770034602295,4.5,103.33,103.29,3.60462296]
[1770034602606,4.5,103.32,103.28,3.60462296]
[1770034603001,4.5,103.32,103.29,3.60462296]
[1770034603384,4.5,103.34,103.31,3.60462296]
[1770034604108,4.5,103.34,103.32,3.60462296]
[1770034604488,4.6,103.36,103.33,3.60462296]
[1770034604811,4.6,103.36,103.32,3.60462296]
[1770034605010,4.5,103.35,103.31,3.60462296]
[1770034606312,4.5,103.33,103.29,3.60462296]
[1770034606887,4.5,103.31,103.27,3.60462296]
[1770034607908,4.5,103.32,103.29,3.60462296]
[1770034608798,4.5,103.31,103.28,3.60462296]
[1770034609194,4.5,103.31,103.27,3.60462296]
[1770034609488,4.5,103.3,103.27,3.60462296]
[1770034609804,4.5,103.3,103.26,3.60462296]
[1770034610206,4.5,103.28,103.25,3.60462296]
[1770034610405,4.5,103.28,103.21,9.68898362]
[1770034610406,4.5,103.27,103.21,31.17527085]
[1770034610609,4.5,103.27,103.24,3.60462296]
[1770034611599,4.5,103.29,103.25,3.60462296]
[1770034613105,4.5,103.29,103.26,3.60462296]
[1770034613917,4.5,103.3,103.26,3.60462296]
[1770034614094,4.5,103.3,103.27,3.60462296]
[1770034615595,4.5,103.3,103.26,3.60462296]
[1770034616117,4.5,103.29,103.26,3.60462296]
[1770034616521,4.5,103.3,103.27,3.60462296]
[1770034616899,4.5,103.3,103.26,3.60462296]
[1770034617098,4.5,103.29,103.26,3.60462296]
[1770034619123,4.5,103.29,103.25,0.14216157]
[1770034619310,4.5,103.29,103.26,3.60462296]
[1770034620321,4.5,103.29,103.25,3.60462296]
[1770034621527,4.5,103.26,103.22,3.60462296]
[1770034621708,4.5,103.25,103.21,3.60462296]
[1770034622018,4.5,103.25,103.22,3.60462296]
[1770034622430,4.5,103.25,103.21,3.60462296]
[1770034623907,30.0,103.24,103.21,3.60462296]
[1770034624222,27.65817107,103.24,103.22,3.60462296]
[1770034624413,4.5,103.27,103.23,3.60462296]
[1770034624607,4.5,103.28,103.24,3.60462296]
[1770034625722,8.10462296,103.27,103.23,3.60462296]
[1770034626019,4.5,103.26,103.22,3.60462296]
[1770034627414,4.5,103.26,103.21,0.28432314]
[1770034627415,4.5,103.26,103.23,3.60462296]
[1770034628327,4.5,103.26,103.22,3.60462296]
[1770034628531,4.5,103.26,103.23,3.60462296]
[1770034629327,4.5,103.28,103.24,3.60462296]
[1770034629511,4.5,103.29,103.25,3.60462296]
[1770034629715,4.5,103.29,103.26,3.60462296]
[1770034630423,4.5,103.28,103.23,27.20432314]
[1770034630626,4.5,103.27,103.23,30.52462296]
[1770034630813,4.5,103.27,103.23,3.60462296]
[1770034631330,4.5,103.27,103.24,3.60462296]
[1770034631635,4.5,103.27,103.23,3.60462296]
[1770034631809,4.5,103.27,103.22,3.60462296]
[1770034631810,4.5,103.26,103.22,3.60462296]
[1770034632025,4.5,103.26,103.23,3.60462296]
[1770034633126,4.5,103.26,103.22,3.60462296]
[1770034634729,4.5,103.26,103.2,30.52462296]
[1770034635037,4.5,103.25,103.19,62.0]
[1770034635232,4.5,103.24,103.2,3.60462296]
[1770034636723,4.5,103.23,103.19,3.80462296]
[1770034636930,3.60462296,103.24,103.2,3.60462296]
[1770034636931,4.5,103.24,103.2,3.60462296]
[1770034637219,4.5,103.24,103.19,0.2]
[1770034637220,4.5,103.24,103.21,3.60462296]
[1770034640534,4.5,103.24,103.19,3.80462296]
[1770034640535,4.5,103.23,103.19,3.80462296]
[1770034641233,4.5,103.26,103.22,3.60462296]
[1770034641424,4.5,103.25,103.22,3.60462296]
[1770034642340,4.5,103.25,103.21,3.60462296]
[1770034642532,4.5,103.23,103.19,3.80462296]
[1770034643016,4.5,103.23,103.2,3.60462296]
[1770034643218,4.5,103.24,103.21,3.60462296]
[1770034643617,4.5,103.24,103.2,3.60462296]
[1770034643820,4.5,103.24,103.21,3.60462296]
[1770034644122,4.5,103.24,103.22,3.60462296]
[1770034644328,4.5,103.25,103.22,3.60462296]
[1770034645230,4.5,103.26,103.22,3.60462296]
[1770034645439,4.5,103.27,103.23,3.60462296]
[1770034646023,4.5,103.27,103.24,3.60462296]
[1770034647040,4.27527085,103.31,103.26,3.60462296]
[1770034647225,4.5,103.32,103.3,3.60462296]
[1770034647425,4.5,103.32,103.29,3.60462296]
[1770034647637,4.5,103.32,103.26,4.41743242]
[1770034647638,4.5,103.31,103.28,3.60462296]
[1770034647849,8.10462296,103.3,103.26,3.60462296]
[1770034648140,4.5,103.29,103.26,3.60462296]
[1770034648522,4.5,103.28,103.24,0.28432314]
[1770034648730,4.5,103.28,103.25,3.60462296]
[1770034650242,0.28432314,103.32,103.24,9.68573955]
[1770034650439,4.5,103.34,103.3,3.60462296]
[1770034650742,4.6,103.36,103.32,3.60462296]
[1770034651043,4.6,103.36,103.31,0.28432314]
[1770034651253,4.6,103.36,103.33,3.60462296]
[1770034651420,4.6,103.36,103.3,3.60462296]
[1770034651421,4.5,103.34,103.31,3.60462296]
[1770034651916,4.5,103.33,103.28,4.27527085]
[1770034652118,4.5,103.33,103.3,3.60462296]
[1770034652324,4.5,103.34,103.31,3.60462296]
[1770034652640,4.5,103.34,103.31,9.01317374]
[1770034652818,4.5,103.35,103.32,9.01317374]
[1770034653015,4.5,103.35,103.3,0.28432314]
[1770034653218,4.6,103.36,103.34,9.01317374]
[1770034654046,4.6,103.36,103.33,9.01317374]
[1770034654344,4.6,103.36,103.34,9.01317374]
[1770034654639,4.6,103.36,103.32,9.01317374]
[1770034654841,0.1,103.36,103.35,9.01317374]
[1770034655020,4.5,103.39,103.34,9.67657534]
[1770034655215,4.5,103.39,103.33,31.19527085]
[1770034655416,3.714,103.39,103.33,31.19527085]
[1770034655634,6.39307025,103.41,103.35,9.01317374]
[1770034655835,9.01317374,103.39,103.34,9.79917374]
[1770034656441,9.00679164,103.37,103.32,27.706]
[1770034656645,9.00679164,103.37,103.32,9.79279164]
[1770034656842,9.00679164,103.37,103.33,9.00679164]
[1770034657324,4.24946457,103.36,103.32,9.79279164]
[1770034658159,0.14216157,103.4,103.31,0.28432314]
[1770034658160,0.28432314,103.4,103.34,0.786]
[1770034658443,6.39307025,103.41,103.38,0.786]
[1770034658829,0.1,103.43,103.38,4.56651438]
[1770034659026,0.1,103.43,103.37,4.42435281]
[1770034659219,9.00679164,103.42,103.37,13.43114445]
[1770034659419,9.00679164,103.41,103.36,13.71546759]
[1770034659628,9.00679164,103.41,103.36,13.43114445]
[1770034659931,0.38432314,103.43,103.36,9.00679164]
[1770034660129,0.38432314,103.43,103.35,4.70867595]
[1770034660332,9.00679164,103.39,103.35,13.43114445]
[1770034660544,9.00679164,103.38,103.33,8.69962366]
[1770034660719,9.00679164,103.38,103.34,9.00679164]
[1770034660920,4.35458951,103.38,103.34,13.43114445]
[1770034661228,0.1,103.43,103.38,4.42435281]
[1770034661551,0.1,103.43,103.41,9.00679164]
[1770034661944,4.45458951,103.43,103.4,9.00679164]
[1770034662134,0.1,103.43,103.41,9.00679164]
[1770034662442,0.1,103.43,103.38,4.42435281]
[1770034662443,4.45458951,103.43,103.38,4.42435281]
[1770034662646,4.45458951,103.43,103.39,9.00679164]
[1770034662845,4.45458951,103.43,103.4,9.00679164]
[1770034663353,4.35458951,103.4,103.37,12.7]
[1770034663531,4.35458951,103.39,103.35,9.00679164]
[1770034663738,4.35458951,103.39,103.35,13.43114445]
[1770034664247,0.1,103.44,103.4,4.42435281]
[1770034664427,0.1,103.45,103.44,9.00679164]
[1770034664626,1.69571403,103.46,103.44,13.43114445]
[1770034664827,1.69571403,103.46,103.45,9.00679164]
[1770034665241,1.69571403,103.46,103.43,4.55959399]
[1770034665242,1.69571403,103.46,103.43,31.45959399]
[1770034665441,1.69571403,103.46,103.45,9.00679164]
[1770034665847,1.69571403,103.46,103.44,9.00679164]
[1770034666024,1.69571403,103.46,103.43,9.00679164]
[1770034666235,6.19571403,103.46,103.42,9.00679164]
[1770034666434,15.20250567,103.46,103.42,9.00679164]
[1770034666642,6.19571403,103.46,103.42,9.00679164]
[1770034666842,4.5,103.45,103.4,0.28432314]
[1770034667051,13.50679164,103.45,103.41,9.00679164]
[1770034667262,4.5,103.43,103.4,9.00679164]
[1770034667632,13.50679164,103.44,103.4,9.00679164]
[1770034668029,4.5,103.42,103.39,9.00679164]
[1770034669345,13.50679164,103.43,103.38,13.28206249]
[1770034669534,9.00679164,103.42,103.38,13.28206249]
[1770034670442,13.50679164,103.41,103.37,27.16432314]
[1770034670637,13.50679164,103.41,103.37,36.17111478]
[1770034671233,4.5,103.45,103.38,9.29111478]
[1770034671455,13.50679164,103.41,103.38,0.28432314]
[1770034671668,4.5,103.41,103.37,26.88]
[1770034672045,13.50679164,103.41,103.37,26.88]